fUST/lending_fUST_20250507
["ID","MTS","AMOUNT","RATE_DAILY","PERIOD"]
[360188830,1746611449354,-400.0,0.00013698,2]
[360188831,1746611449364,-400.0,0.00013698,2]
[360188832,1746611449374,-274.54366091,0.00013698,2]
[360188833,1746611449384,-400.0,0.00013698,2]
[360188834,1746611449394,-400.0,0.00013698,2]
[360188835,1746611449404,-400.0,0.00013698,2]
[360188836,1746611449413,-400.0,0.00013698,2]
[360188837,1746611449423,-402.61539839,0.00013698,2]
[360188838,1746611449432,-400.0,0.00013698,2]
[360188839,1746611449442,-388.64224484,0.00013698,2]
[360188840,1746611449466,-11.35775516,0.00013698,2]
[360188841,1746611449476,-400.0,0.00013698,2]
[360188842,1746611449486,-400.0,0.00013698,2]
[360188843,1746611449497,-400.0,0.00013698,2]
[360188844,1746611449507,-400.0,0.00013698,2]
[360188845,1746611449516,-777.9,0.00013698,2]
[360188846,1746611449526,-400.0,0.00013698,2]
[360188847,1746611449536,-295.51992344,0.00013698,2]
[360188848,1746611449629,-104.48007656,0.00013698,2]
[360188849,1746611449638,-353.47576416,0.00013698,2]
[360188850,1746611449648,-400.0,0.00013698,2]
[360188851,1746611449658,-945.47,0.00013698,2]
[360188852,1746611449668,-500.0,0.00013698,2]
[360188853,1746611449678,-333.75200262,0.00013698,2]
[360188854,1746611449690,-66.24799738,0.00013698,2]
[360188855,1746611449700,-400.0,0.00013698,2]
[360188856,1746611449709,-234.3505331,0.00013698,2]
[360188858,1746611518789,-160.0,0.00018854,6]
[360188859,1746611518820,-160.0,0.00018957,7]
[360188860,1746611518843,-160.0,0.0001906,8]
[360188861,1746611518865,-160.0,0.00019163,9]
[360188862,1746611518897,-160.0,0.00019266,10]
[360188863,1746611518920,-766.681675,0.00019281,7]
[360188864,1746611518942,-160.0,0.00019369,11]
[360188865,1746611518971,-160.0,0.00019472,12]
[360188866,1746611518993,-160.0,0.00019575,13]
[360188867,1746611519015,-160.0,0.00019678,14]
[360188868,1746611519038,-5046.0,0.000197,10]
[360188869,1746611519069,-160.0,0.00019781,15]
[360188870,1746611519091,-160.0,0.00019884,16]
[360188871,1746611519113,-160.0,0.00019987,17]
[360188893,1746611748691,-3736.91482953,0.00011594,5]
[360188899,1746611771130,85.08517047,0.000115,2]
[360188904,1746611820713,-370.91482953,0.000115,2]
[360188906,1746611891106,-250.0,0.00011594,2]
[360188907,1746611891128,-300.0,0.00012488,2]
[360188908,1746611891148,-300.0,0.00012489,2]
[360188909,1746611891169,-300.0,0.00012489,2]
[360188910,1746611891199,-500.0,0.00012489,2]
[360188911,1746611891220,-500.0,0.00012489,2]
[360188912,1746611891240,-200.0,0.00012489,2]
[360188913,1746611891262,-500.0,0.00012489,2]
[360188914,1746611891290,-500.0,0.00012489,2]
[360188915,1746611891311,-500.0,0.00012489,2]
[360188916,1746611891333,-500.0,0.00012489,2]
[360188917,1746611891366,-500.0,0.00012489,2]
[360188918,1746611891584,-500.0,0.00012489,2]
[360188919,1746611891613,-500.0,0.00012489,2]
[360188920,1746611891634,-500.0,0.00012489,2]
[360188921,1746611891662,-500.0,0.00012489,2]
[360188922,1746611891683,-307.5531336,0.00012489,2]
[360188923,1746611891706,-500.0,0.00012489,2]
[360188924,1746611891727,-210.41082683,0.00012489,2]
[360188925,1746611891758,-500.0,0.00012489,2]
[360188926,1746611891787,-500.0,0.00012489,2]
[360188927,1746611891816,-500.0,0.00012489,2]
[360188928,1746611891846,-500.0,0.00012489,2]
[360188929,1746611891875,-500.0,0.00012489,2]
[360188930,1746611891905,-500.0,0.00012489,2]
[360188931,1746611891944,-409.54748923,0.00012489,2]
[360188932,1746611891975,-500.0,0.00012489,2]
[360188933,1746611892004,-500.0,0.00012489,2]
[360188934,1746611892027,-151.0,0.00012593,2]
[360188935,1746611892049,-151.0,0.00012595,2]
[360188936,1746611892072,-151.0,0.000127,2]
[360188937,1746611892097,-151.0,0.000129,2]
[360188938,1746611892119,-151.0,0.00013,2]
[360188939,1746611892142,-150.0,0.00013192,2]
[360188940,1746611892164,-150.0,0.00013192,2]
[360188941,1746611892186,-150.0,0.00013192,2]
[360188942,1746611892208,-150.0,0.00013192,2]
[360188943,1746611892231,-150.0,0.00013192,2]
[360188944,1746611892253,-150.0,0.00013192,2]
[360188945,1746611892275,-404.0,0.00013192,2]
[360188946,1746611892297,-404.0,0.00013192,2]
[360188947,1746611892320,-223.77973939,0.00013598,2]
[360188948,1746611892347,-20954.45158692,0.00013598,2]
[360188949,1746611892374,-307.2269379,0.00013628,2]
[360188950,1746611892398,-1698.3073579,0.00013629,2]
[360188951,1746611892422,-500.0,0.00013673,2]
[360188952,1746611892445,-500.0,0.00013673,2]
[360188953,1746611892470,-151.0,0.00013698,2]
[360188954,1746611892493,-400.0,0.00013698,2]
[360188955,1746611892516,-400.0,0.00013698,2]
[360188956,1746611892540,-400.0,0.00013698,2]
[360188957,1746611892566,-400.0,0.00013698,2]
[360188958,1746611892589,-400.0,0.00013698,2]
[360188959,1746611892612,-400.0,0.00013698,2]
[360188960,1746611892635,-358.0,0.00013698,2]
[360188961,1746611892659,-400.0,0.00013698,2]
[360188962,1746611892683,-400.0,0.00013698,2]
[360188963,1746611892707,-400.0,0.00013698,2]
[360188964,1746611892733,-400.0,0.00013698,2]
[360188965,1746611892756,-400.0,0.00013698,2]
[360188966,1746611892779,-400.0,0.00013698,2]
[360188967,1746611892803,-400.0,0.00013698,2]
[360188968,1746611892827,-400.0,0.00013698,2]
[360188969,1746611892851,-540.61,0.00013698,2]
[360188970,1746611892875,-408.03228969,0.00013698,2]
[360188971,1746611892899,-400.0,0.00013698,2]
[360188972,1746611892924,-400.0,0.00013698,2]
[360188973,1746611892947,-331.37407298,0.00013698,2]
[360188974,1746611892970,-400.0,0.00013698,2]
[360188975,1746611892994,-400.0,0.00013698,2]
[360188976,1746611893018,-400.0,0.00013698,2]
[360188977,1746611893041,-218.04985553,0.00013698,2]
[360188978,1746611893063,-400.0,0.00013698,2]
[360188979,1746611893087,-400.0,0.00013698,2]
[360188980,1746611893110,-400.0,0.00013698,2]
[360188981,1746611893134,-405.29905868,0.00013698,2]
[360188982,1746611893161,-400.0,0.00013698,2]
[360188983,1746611893182,-400.0,0.00013698,2]
[360188984,1746611893204,-414.23256577,0.00013698,2]
[360188985,1746611893227,-400.0,0.00013698,2]
[360188986,1746611893249,-400.0,0.00013698,2]
[360188987,1746611893271,-400.0,0.00013698,2]
[360188988,1746611893292,-508.9059925,0.00013698,2]
[360188989,1746611893314,-647.66,0.00013698,2]
[360188990,1746611893337,-406.71,0.00013698,2]
[360188991,1746611893361,-180.41846453,0.00013698,2]
[360188992,1746611893383,-400.0,0.00013698,2]
[360188993,1746611893405,-403.4645341,0.00013698,2]
[360188994,1746611893428,-400.0,0.00013698,2]
[360188995,1746611893450,-400.0,0.00013698,2]
[360188996,1746611893473,-400.0,0.00013698,2]
[360188997,1746611893494,-539.30478035,0.00013698,2]
[360188998,1746611893516,-400.0,0.00013698,2]
[360188999,1746611893538,-488.9,0.00013698,2]
[360189000,1746611893562,-400.0,0.00013698,2]
[360189001,1746611893586,-485.24624952,0.00013698,2]
[360189002,1746611893611,-400.0,0.00013698,2]
[360189003,1746611893634,-400.0,0.00013698,2]
[360189004,1746611893657,-400.0,0.00013698,2]
[360189005,1746611893679,-400.0,0.00013698,2]
[360189006,1746611893701,-400.0,0.00013698,2]
[360189007,1746611893723,-1127.29,0.00013698,2]
[360189008,1746611893745,-400.0,0.00013698,2]
[360189009,1746611893768,-212.58835664,0.00013698,2]
[360189010,1746611893792,-412.4699786,0.00013698,2]
[360189011,1746611893815,-400.0,0.00013698,2]
[360189012,1746611893838,-400.0,0.00013698,2]
[360189013,1746611893860,-402.84303806,0.00013698,2]
[360189014,1746611893883,-400.0,0.00013698,2]
[360189015,1746611893906,-400.0,0.00013698,2]
[360189016,1746611893930,-400.0,0.00013698,2]
[360189017,1746611893953,-400.0,0.00013698,2]
[360189018,1746611893977,-400.0,0.00013698,2]
[360189019,1746611893999,-1000.0,0.00013698,2]
[360189020,1746611894021,-400.0,0.00013698,2]
[360189021,1746611894045,-649.89,0.00013698,2]
[360189022,1746611894067,-296.88359585,0.00013698,2]
[360189023,1746611894089,-400.0,0.00013698,2]
[360189024,1746611894113,-400.0,0.00013698,2]
[360189025,1746611894137,-400.0,0.00013698,2]
[360189026,1746611894159,-415.08062432,0.00013698,2]
[360189027,1746611894181,-407.68146521,0.00013698,2]
[360189028,1746611894205,-400.0,0.00013698,2]
[360189029,1746611894227,-403.89905636,0.00013698,2]
[360189030,1746611894249,-400.0,0.00013698,2]
[360189031,1746611894271,-400.0,0.00013698,2]
[360189032,1746611894295,-400.0,0.00013698,2]
[360189033,1746611894319,-400.0,0.00013698,2]
[360189034,1746611894341,-400.0,0.00013698,2]
[360189035,1746611894363,-400.0,0.00013698,2]
[360189036,1746611894387,-400.0,0.00013698,2]
[360189037,1746611894408,-404.88185765,0.00013698,2]
[360189038,1746611894430,-400.0,0.00013698,2]
[360189039,1746611894451,-400.0,0.00013698,2]
[360189040,1746611894472,-459.59881565,0.00013698,2]
[360189041,1746611894493,-400.0,0.00013698,2]
[360189042,1746611894515,-400.0,0.00013698,2]
[360189043,1746611894537,-750.11,0.00013698,2]
[360189044,1746611894560,-400.0,0.00013698,2]
[360189045,1746611894586,-400.0,0.00013698,2]
[360189046,1746611894610,-400.0,0.00013698,2]
[360189047,1746611894631,-400.0,0.00013698,2]
[360189048,1746611894656,-400.0,0.00013698,2]
[360189049,1746611894677,-400.0,0.00013698,2]
[360189050,1746611894698,-400.0,0.00013698,2]
[360189051,1746611894720,-400.0,0.00013698,2]
[360189052,1746611894743,-224.29827624,0.00013698,2]
[360189057,1746612016517,160.0,0.0001994,12]
[360189058,1746612017034,160.0,0.0001979,11]
[360189059,1746612017359,160.0,0.0001964,10]
[360189060,1746612018254,160.0,0.00019491,9]
[360189061,1746612018594,160.0,0.00019341,8]
[360189063,1746612018920,160.0,0.00019191,7]
[360189064,1746612019286,160.0,0.00019042,6]
[360189067,1746612050454,-300.0,0.00012999,2]
[360189068,1746612050474,-196.42076403,0.00012999,2]
[360189069,1746612050497,-200.83923707,0.00012999,2]
[360189070,1746612050520,-245.60120298,0.00012999,2]
[360189071,1746612050550,-500.0,0.00012999,2]
[360189072,1746612050582,-267.7274988,0.00012999,2]
[360189073,1746612050602,-5160.41129712,0.00013,2]
[360189100,1746612632302,-1414.0737417,0.00012121,2]
[360189101,1746612632312,-1000.0,0.00012899,2]
[360189102,1746612632323,-155.0,0.000129,2]
[360189103,1746612632333,-207.4,0.00012992,2]
[360189104,1746612632343,-200.0,0.00012999,2]
[360189105,1746612632352,-200.0,0.00012999,2]
[360189106,1746612632361,-700.0,0.00012999,2]
[360189107,1746612632371,-300.0,0.00012999,2]
[360189108,1746612632380,-87759.66351143,0.00013,2]
[360189109,1746612632390,-1972.73510048,0.00013092,2]
[360189110,1746612632400,-546.0,0.00013192,2]
[360189111,1746612632409,-2241.0,0.00013202,2]
[360189112,1746612632419,-708.0,0.00013202,2]
[360189113,1746612632429,-404.0,0.00013202,2]
[360189115,1746612632442,-404.0,0.00013202,2]
[360189117,1746612632452,-7612.87395275,0.00013202,2]
[360189139,1746612638195,-5404.2090606,0.00013202,2]
[360189506,1746612643322,-1597.52801924,0.00013202,2]
[360189507,1746612643331,-195.04464424,0.00013421,2]
[360189508,1746612643341,-1047.95791594,0.00013521,2]
[360189509,1746612643350,-2828.2763391,0.00013598,2]
[360189510,1746612643359,-180.647,0.000136,2]
[360189511,1746612643367,-1789.9245408,0.00013629,2]
[360189512,1746612643377,-195.04464424,0.00013636,2]
[360189513,1746612643386,-500.0,0.00013673,2]
[360189514,1746612643396,-500.0,0.00013673,2]
[360189516,1746612643405,-500.0,0.00013673,2]
[360189518,1746612643414,-500.0,0.00013673,2]
[360189520,1746612643423,-500.0,0.00013673,2]
[360189522,1746612643432,-500.0,0.00013673,2]
[360189524,1746612643442,-227.99365818,0.00013673,2]
[360189526,1746612643451,-500.0,0.00013673,2]
[360189528,1746612643460,-500.0,0.00013673,2]
[360189530,1746612643469,-503.85476583,0.00013698,2]
[360189532,1746612643478,-400.0,0.00013698,2]
[360189534,1746612643488,-400.0,0.00013698,2]
[360189536,1746612643498,-400.0,0.00013698,2]
[360189538,1746612643507,-400.0,0.00013698,2]
[360189540,1746612643516,-400.0,0.00013698,2]
[360189542,1746612643525,-400.0,0.00013698,2]
[360189544,1746612643534,-400.0,0.00013698,2]
[360189546,1746612643544,-400.0,0.00013698,2]
[360189548,1746612643553,-400.0,0.00013698,2]
[360189550,1746612643562,-400.0,0.00013698,2]
[360189552,1746612643572,-400.0,0.00013698,2]
[360189554,1746612643581,-318.02000021,0.00013698,2]
[360189556,1746612643590,-400.0,0.00013698,2]
[360189558,1746612643599,-400.0,0.00013698,2]
[360189560,1746612643608,-400.0,0.00013698,2]
[360189562,1746612643617,-500.0,0.00013698,2]
[360189564,1746612643626,-500.0,0.00013698,2]
[360189566,1746612643635,-400.0,0.00013698,2]
[360189568,1746612643645,-400.0,0.00013698,2]
[360189570,1746612643654,-400.0,0.00013698,2]
[360189572,1746612643665,-400.0,0.00013698,2]
[360189574,1746612643674,-400.0,0.00013698,2]
[360189576,1746612643683,-400.0,0.00013698,2]
[360189578,1746612643691,-508.81012893,0.00013698,2]
[360189580,1746612643700,-400.0,0.00013698,2]
[360189582,1746612643710,-443.11,0.00013698,2]
[360189584,1746612643719,-419.84,0.00013698,2]
[360189586,1746612643729,-400.0,0.00013698,2]
[360189588,1746612643738,-400.0,0.00013698,2]
[360189590,1746612643747,-400.0,0.00013698,2]
[360189592,1746612643758,-400.0,0.00013698,2]
[360189594,1746612643767,-270.11337989,0.00013698,2]
[360189596,1746612643776,-400.0,0.00013698,2]
[360189598,1746612643785,-400.0,0.00013698,2]
[360189600,1746612643796,-439.87,0.00013698,2]
[360189602,1746612643804,-400.0,0.00013698,2]
[360189604,1746612643813,-400.0,0.00013698,2]
[360189606,1746612643822,-516.22620819,0.00013698,2]
[360189608,1746612643831,-400.0,0.00013698,2]
[360189610,1746612643840,-1322.3,0.00013698,2]
[360189612,1746612643849,-400.0,0.00013698,2]
[360189614,1746612643858,-400.0,0.00013698,2]
[360189616,1746612643867,-400.0,0.00013698,2]
[360189618,1746612643876,-604.43,0.00013698,2]
[360189620,1746612643886,-400.0,0.00013698,2]
[360189622,1746612643896,-400.0,0.00013698,2]
[360189624,1746612643905,-400.0,0.00013698,2]
[360189626,1746612643914,-1000.0,0.00013698,2]
[360189628,1746612643926,-400.0,0.00013698,2]
[360189630,1746612643936,-403.78525357,0.00013698,2]
[360189632,1746612643945,-400.0,0.00013698,2]
[360189634,1746612643955,-400.0,0.00013698,2]
[360189636,1746612643964,-400.0,0.00013698,2]
[360189638,1746612643974,-515.08213661,0.00013698,2]
[360189640,1746612643983,-400.0,0.00013698,2]
[360189642,1746612643992,-411.69198738,0.00013698,2]
[360189644,1746612644002,-400.0,0.00013698,2]
[360189646,1746612644011,-400.0,0.00013698,2]
[360189648,1746612644020,-400.0,0.00013698,2]
[360189650,1746612644030,-400.0,0.00013698,2]
[360189652,1746612644039,-400.0,0.00013698,2]
[360189654,1746612644048,-400.0,0.00013698,2]
[360189656,1746612644057,-400.0,0.00013698,2]
[360189657,1746612644067,-402.20621906,0.00013698,2]
[360189659,1746612644077,-518.09,0.00013698,2]
[360189661,1746612644086,-400.0,0.00013698,2]
[360189663,1746612644095,-400.0,0.00013698,2]
[360189665,1746612644104,-400.0,0.00013698,2]
[360189667,1746612644113,-400.0,0.00013698,2]
[360189683,1746612644272,-400.0,0.00013698,2]
[360189685,1746612644282,-620.67,0.00013698,2]
[360189687,1746612644292,-482.6107464,0.00013698,2]
[360189689,1746612644301,-400.0,0.00013698,2]
[360189691,1746612644310,-400.0,0.00013698,2]
[360189693,1746612644318,-400.0,0.00013698,2]
[360189695,1746612644328,-209.02321507,0.00013698,2]
[360189696,1746612644337,-400.0,0.00013698,2]
[360189698,1746612644347,-409.28384133,0.00013698,2]
[360189700,1746612644356,-408.97621162,0.00013698,2]
[360189702,1746612644366,-400.0,0.00013698,2]
[360189704,1746612644375,-400.0,0.00013698,2]
[360189706,1746612644384,-400.0,0.00013698,2]
[360189708,1746612644394,-400.0,0.00013698,2]
[360189710,1746612644404,-400.0,0.00013698,2]
[360189712,1746612644413,-403.7952112,0.00013698,2]
[360189714,1746612644423,-400.0,0.00013698,2]
[360189716,1746612644432,-400.0,0.00013698,2]
[360189718,1746612644441,-400.0,0.00013698,2]
[360189720,1746612644450,-400.0,0.00013698,2]
[360189721,1746612644459,-400.11,0.00013698,2]
[360189723,1746612644469,-402.36828827,0.00013698,2]
[360189725,1746612644478,-461.72,0.00013698,2]
[360189727,1746612644487,-400.0,0.00013698,2]
[360189729,1746612644496,-400.0,0.00013698,2]
[360189731,1746612644506,-400.0,0.00013698,2]
[360189733,1746612644515,-400.0,0.00013698,2]
[360189735,1746612644525,-487.66964767,0.00013698,2]
[360189737,1746612644534,-400.0,0.00013698,2]
[360189739,1746612644544,-400.0,0.00013698,2]
[360189741,1746612644552,-400.0,0.00013698,2]
[360189743,1746612644562,-400.0,0.00013698,2]
[360189745,1746612644571,-400.0,0.00013698,2]
[360189747,1746612644580,-400.0,0.00013698,2]
[360189749,1746612644589,-400.0,0.00013698,2]
[360189751,1746612644599,-550.98,0.00013698,2]
[360189753,1746612644608,-400.0,0.00013698,2]
[360189755,1746612644617,-400.0,0.00013698,2]
[360189757,1746612644626,-400.0,0.00013698,2]
[360189758,1746612644636,-400.0,0.00013698,2]
[360189760,1746612644646,-273.73123358,0.00013698,2]
[360189763,1746612644656,-400.0,0.00013698,2]
[360189765,1746612644666,-515.0763965,0.00013698,2]
[360189766,1746612644676,-327.80225005,0.00013698,2]
[360189769,1746612644685,-400.0,0.00013698,2]
[360189771,1746612644695,-1000.0,0.00013698,2]
[360189773,1746612644706,-1021.89,0.00013698,2]
[360189775,1746612644716,-400.0,0.00013698,2]
[360189776,1746612644726,-468.53,0.00013698,2]
[360189778,1746612644735,-400.0,0.00013698,2]
[360189780,1746612644744,-400.0,0.00013698,2]
[360189782,1746612644754,-400.0,0.00013698,2]
[360189784,1746612644763,-400.0,0.00013698,2]
[360189786,1746612644774,-400.0,0.00013698,2]
[360189788,1746612644784,-350.33280172,0.00013698,2]
[360189790,1746612644794,-200.00451231,0.00013698,2]
[360189792,1746612644804,-400.0,0.00013698,2]
[360189794,1746612644813,-400.0,0.00013698,2]
[360189796,1746612644823,-400.0,0.00013698,2]
[360189798,1746612644833,-400.0,0.00013698,2]
[360189801,1746612644843,-400.0,0.00013698,2]
[360189802,1746612644852,-400.0,0.00013698,2]
[360189804,1746612644862,-400.0,0.00013698,2]
[360189806,1746612644871,-400.0,0.00013698,2]
[360189808,1746612644880,-1080.32,0.00013698,2]
[360189810,1746612644889,-400.0,0.00013698,2]
[360189812,1746612644899,-559.27,0.00013698,2]
[360189814,1746612644909,-400.0,0.00013698,2]
[360189816,1746612644920,-400.0,0.00013698,2]
[360189818,1746612644930,-400.0,0.00013698,2]
[360189820,1746612644939,-201.68768306,0.00013698,2]
[360189822,1746612644949,-400.0,0.00013698,2]
[360189824,1746612644959,-400.0,0.00013698,2]
[360189826,1746612644970,-400.0,0.00013698,2]
[360189828,1746612644979,-718.85,0.00013698,2]
[360189830,1746612644988,-400.0,0.00013698,2]
[360189832,1746612645000,-906.07,0.00013698,2]
[360189834,1746612645011,-507.22556106,0.00013698,2]
[360189836,1746612645020,-404.55002066,0.00013698,2]
[360189838,1746612645030,-400.0,0.00013698,2]
[360189840,1746612645040,-400.0,0.00013698,2]
[360189842,1746612645049,-400.0,0.00013698,2]
[360189844,1746612645059,-436.19655938,0.00013698,2]
[360189846,1746612645068,-420.37,0.00013698,2]
[360189848,1746612645077,-400.0,0.00013698,2]
[360189850,1746612645086,-400.0,0.00013698,2]
[360189852,1746612645096,-437.42,0.00013698,2]
[360189854,1746612645105,-406.22493297,0.00013698,2]
[360189856,1746612645114,-652.29,0.00013698,2]
[360189858,1746612645123,-400.0,0.00013698,2]
[360189860,1746612645133,-400.0,0.00013698,2]
[360189862,1746612645141,-400.0,0.00013698,2]
[360189864,1746612645150,-500.0,0.00013698,2]
[360189866,1746612645161,-400.0,0.00013698,2]
[360189868,1746612645170,-400.0,0.00013698,2]
[360189870,1746612645180,-400.0,0.00013698,2]
[360189872,1746612645189,-400.0,0.00013698,2]
[360189874,1746612645198,-592.04,0.00013698,2]
[360189876,1746612645207,-400.0,0.00013698,2]
[360189878,1746612645216,-418.13994744,0.00013698,2]
[360189879,1746612645225,-400.0,0.00013698,2]
[360189880,1746612645234,-400.0,0.00013698,2]
[360189881,1746612645244,-400.0,0.00013698,2]
[360189882,1746612645253,-400.0,0.00013698,2]
[360189883,1746612645263,-400.0,0.00013698,2]
[360189884,1746612645271,-400.0,0.00013698,2]
[360189885,1746612645281,-401.83896348,0.00013698,2]
[360189886,1746612645290,-1913.15,0.00013698,2]
[360189887,1746612645300,-154.189915,0.00013698,2]
[360189888,1746612645309,-400.0,0.00013698,2]
[360189889,1746612645318,-334.45770767,0.00013698,2]
[360189890,1746612645327,-400.0,0.00013698,2]
[360189891,1746612645336,-400.0,0.00013698,2]
[360189892,1746612645346,-400.0,0.00013698,2]
[360189893,1746612645355,-224.32696045,0.00013698,2]
[360189894,1746612645364,-1370.38,0.00013698,2]
[360189895,1746612645373,-400.0,0.00013698,2]
[360189896,1746612645383,-400.0,0.00013698,2]
[360189897,1746612645392,-400.0,0.00013698,2]
[360189898,1746612645401,-400.0,0.00013698,2]
[360189899,1746612645410,-400.0,0.00013698,2]
[360189900,1746612645420,-400.0,0.00013698,2]
[360189901,1746612645433,-400.0,0.00013698,2]
[360189902,1746612645442,-400.0,0.00013698,2]
[360189903,1746612645451,-561.56,0.00013698,2]
[360189904,1746612645461,-400.0,0.00013698,2]
[360189905,1746612645470,-400.0,0.00013698,2]
[360189906,1746612645479,-400.0,0.00013698,2]
[360189907,1746612645488,-400.0,0.00013698,2]
[360189908,1746612645498,-851.06,0.00013698,2]
[360189909,1746612645507,-416.84603272,0.00013698,2]
[360189910,1746612645516,-503.2640066,0.00013698,2]
[360189911,1746612645525,-400.0,0.00013698,2]
[360189912,1746612645536,-538.15,0.00013698,2]
[360189913,1746612645545,-525.42,0.00013698,2]
[360189914,1746612645554,-2950.71,0.00013698,2]
[360189915,1746612645563,-404.85723274,0.00013698,2]
[360189916,1746612645573,-1774.43,0.00013698,2]
[360189917,1746612645581,-400.0,0.00013698,2]
[360189918,1746612645590,-400.0,0.00013698,2]
[360189919,1746612645599,-400.0,0.00013698,2]
[360189920,1746612645608,-521.16,0.00013698,2]
[360189921,1746612645616,-400.0,0.00013698,2]
[360189922,1746612645626,-4946.17,0.00013698,2]
[360189923,1746612645634,-400.0,0.00013698,2]
[360189924,1746612645643,-436.28701072,0.00013698,2]
[360189925,1746612645653,-400.0,0.00013698,2]
[360189926,1746612645663,-400.0,0.00013698,2]
[360189927,1746612645672,-400.0,0.00013698,2]
[360189928,1746612645682,-417.20663143,0.00013698,2]
[360189929,1746612645691,-767.62,0.00013698,2]
[360189930,1746612645701,-400.0,0.00013698,2]
[360189931,1746612645711,-400.0,0.00013698,2]
[360189932,1746612645720,-400.0,0.00013698,2]
[360189933,1746612645729,-400.0,0.00013698,2]
[360189934,1746612645738,-400.0,0.00013698,2]
[360189935,1746612645747,-400.0,0.00013698,2]
[360189936,1746612645756,-400.0,0.00013698,2]
[360189937,1746612645765,-400.0,0.00013698,2]
[360189938,1746612645774,-409.8,0.00013698,2]
[360189939,1746612645784,-400.0,0.00013698,2]
[360189940,1746612645794,-400.0,0.00013698,2]
[360189941,1746612645803,-400.0,0.00013698,2]
[360189942,1746612645812,-400.0,0.00013698,2]
[360189943,1746612645822,-400.0,0.00013698,2]
[360189944,1746612645831,-400.0,0.00013698,2]
[360189945,1746612645840,-400.0,0.00013698,2]
[360189946,1746612645849,-400.0,0.00013698,2]
[360189947,1746612645858,-400.0,0.00013698,2]
[360189948,1746612645867,-404.83574071,0.00013698,2]
[360189949,1746612645877,-400.0,0.00013698,2]
[360189951,1746612645886,-400.0,0.00013698,2]
[360189953,1746612645895,-1675.86,0.00013698,2]
[360189954,1746612645905,-515.77248091,0.00013698,2]
[360189956,1746612645915,-400.0,0.00013698,2]
[360189958,1746612645926,-400.0,0.00013698,2]
[360189960,1746612645936,-505.36,0.00013698,2]
[360189962,1746612645945,-400.0,0.00013698,2]
[360189964,1746612645954,-400.0,0.00013698,2]
[360189966,1746612645963,-400.0,0.00013698,2]
[360189968,1746612645972,-521.01189241,0.00013698,2]
[360189970,1746612645982,-604.59,0.00013698,2]
[360189972,1746612645991,-3097.38,0.00013698,2]
[360189973,1746612646000,-404.55147795,0.00013698,2]
[360189975,1746612646010,-400.0,0.00013698,2]
[360189977,1746612646019,-400.0,0.00013698,2]
[360189979,1746612646029,-400.0,0.00013698,2]
[360189981,1746612646038,-400.0,0.00013698,2]
[360189983,1746612646047,-208.06386811,0.00013698,2]
[360189984,1746612646056,-1077.56,0.00013698,2]
[360189985,1746612646065,-400.0,0.00013698,2]
[360189986,1746612646075,-400.0,0.00013698,2]